[Event "50th Ciudad Sevilla 2024"]
[Site "Sevilla"]
[Date "2025.01.15"]
[Round "6.7"]
[White "Troncoso Gutierrez, Adrian"]
[Black "Xu, Xiangyu"]
[Result "0-1"]
[Annotator "RC"]
[ECO "A37"]
[WhiteElo "2196"]
[BlackElo "2611"]
[PlyCount "92"]
[EventDate "2025.01.10"]
[EventType "swiss"]
[EventCountry "ESP"]
[SourceTitle "playchess.com"]
[Source "ChessBase"]
[SourceQuality "1"]
[TimeControl "5400+30"]

1. Nf3 {[%emt 0:00:03]} g6 {[%emt 0:01:19]} 2. g3 {[%emt 0:01:08]} Bg7 {[%emt 0:00:06]} 3. c4 {[%emt 0:01:52]} c5 {[%emt 0:02:11]} 4. Nc3 {[%emt 0:01:18]} Nc6 {[%emt 0:00:07]} 5. Bg2 {[%emt 0:00:45]} d6 {[%emt 0:00:08]} 6. O-O {[%emt 0:00:43]} Bf5 {[%emt 0:00:09]} 7. b3 {[%emt 0:02:35]} e5 {[%emt 0:11:45]} 8. Bb2 {[%emt 0:05:51]} Nge7 {[%emt 0:00:07]} 9. d3 {[%emt 0:02:08]} Qd7 {[%emt 0:00:30]} 10. Ng5 {[%emt 0:12:59]} h6 {[%emt 0:03:57]} 11. Nge4 {[%emt 0:00:15]} Be6 {[%emt 0:00:08]} 12. Nb5 {[%emt 0:09:37]} O-O {[%emt 0:00:07]} 13. f4 {[%emt 0:01:30]} f5 {[%emt 0:01:03]} 14. Nec3 {[%emt 0:03:54]} Rad8 {[%emt 0:07:46]} 15. Nd5 {[%emt 0:02:15]} Bxd5 {[%emt 0:00:19]} 16. cxd5 {[%emt 0:01:20]} Nb4 {[%emt 0:00:06]} 17. Nc3 {[%emt 0:00:42]} exf4 {[%emt 0:00:05]} 18. gxf4 {[%emt 0:00:30]} Nbxd5 {[%emt 0:02:06]} 19. Nxd5 {[%emt 0:01:23]} Bxb2 {[%emt 0:00:05]} 20. Rb1 {[%emt 0:00:23]} Bg7 {[%emt 0:00:25]} 21. Nxe7+ {[%emt 0:01:12]} Qxe7 {[%emt 0:00:05]} 22. Bd5+ {[%emt 0:00:06]} Kh7 {[%emt 0:00:05]} 23. e4 {[%emt 0:00:09]} fxe4 {[%emt 0:05:59]} 24. dxe4 {[%emt 0:00:18]} Qh4 {[%emt 0:00:06]} 25. Qf3 {[%emt 0:21:21]} g5 {[%emt 0:06:34]} 26. f5 {[%emt 0:07:26]} Be5 {[%emt 0:00:48]} 27. Qg2 {[%emt 0:05:43]} Rd7 {[%emt 0:00:05]} 28. Rbd1 {[%emt 0:07:20]} g4 {[%emt 0:00:22]} 29. Rd2 {[%emt 0:02:33]} Rg7 {[%emt 0:00:53]} 30. Rfd1 {[%emt 0:00:12]} b5 {[%emt 0:02:50]} 31. Be6 {[%emt 0:01:22]} h5 {[%emt 0:01:34]} 32. Kf1 {[%emt 0:01:24]} Rc7 {[%emt 0:10:56]} 33. Rxd6 {[%emt 0:02:11]} Bxd6 {[%emt 0:00:48]} 34. Rxd6 {[%emt 0:00:05]} Qg5 {[%emt 0:00:04]} 35. Qd2 {[%emt 0:03:14]} Qxd2 {[%emt 0:00:05]} 36. Rxd2 {[%emt 0:00:03]} c4 {[%emt 0:00:15]} 37. bxc4 {[%emt 0:00:20]} bxc4 {[%emt 0:00:05]} 38. Rc2 {[%emt 0:00:16]} Kg7 {[%emt 0:00:26]} 39. e5 {[%emt 0:00:56]} Rc5 {[%emt 0:00:17]} 40. Re2 {[%emt 0:00:33]} Re8 {[%emt 0:01:47]} 41. Ke1 {[%emt 0:00:14]} c3 {[%emt 0:00:07]} 42. Kd1 {[%emt 0:00:11]} c2+ {[%emt 0:00:30]} 43. Kc1 {[%emt 0:00:15]} Rd8 {[%emt 0:01:21]} 44. f6+ {[%emt 0:00:29]} Kf8 {[%emt 0:00:36]} 45. Rxc2 {[%emt 0:01:10]} Rxc2+ {[%emt 0:00:05]} 46. Kxc2 {[%emt 0:00:34]} Re8 {[%emt 0:00:06]} 0-1

[Event "50th Ciudad Sevilla 2024"]
[Site "Sevilla"]
[Date "2025.01.15"]
[Round "6.8"]
[White "Agdestein, Simen"]
[Black "Balabayeva, Xeniya"]
[Result "1-0"]
[Annotator "RC"]
[ECO "B12"]
[WhiteElo "2564"]
[BlackElo "2249"]
[PlyCount "91"]
[EventDate "2025.01.10"]
[EventType "swiss"]
[EventCountry "ESP"]
[SourceTitle "playchess.com"]
[Source "ChessBase"]
[SourceQuality "1"]
[TimeControl "5400+30"]

1. e4 {[%emt 0:00:28]} c6 {[%emt 0:00:07]} 2. d4 {[%emt 0:00:15]} d5 {[%emt 0:00:06]} 3. e5 {[%emt 0:00:04]} Bf5 {[%emt 0:00:08]} 4. Nf3 {[%emt 0:00:02]} e6 {[%emt 0:00:20]} 5. Be2 {[%emt 0:00:05]} c5 {[%emt 0:03:35]} 6. Be3 {[%emt 0:00:08]} Qb6 {[%emt 0:10:02]} 7. Nc3 {[%emt 0:00:12]} a6 {[%emt 0:03:24]} 8. O-O {[%emt 0:11:09]} Qc7 {[%emt 0:19:40]} 9. Na4 {[%emt 0:18:58]} c4 {[%emt 0:09:25]} 10. Nh4 {[%emt 0:04:30]} Bg6 {[%emt 0:04:34]} 11. f4 {[%emt 0:01:21]} Be7 {[%emt 0:01:58]} 12. Nxg6 {[%emt 0:03:00]} hxg6 {[%emt 0:05:29]} 13. b3 {[%emt 0:06:50]} b5 {[%emt 0:06:03]} 14. Nb2 {[%emt 0:01:57]} Nc6 {[%emt 0:03:08]} 15. a4 {[%emt 0:05:36]} Rb8 {[%emt 0:01:41]} 16. g4 {[%emt 0:02:24]} Bb4 {[%emt 0:09:25]} 17. axb5 {[%emt 0:00:49]} axb5 {[%emt 0:00:11]} 18. bxc4 {[%emt 0:00:43]} bxc4 {[%emt 0:00:26]} 19. Na4 {[%emt 0:00:16]} f5 {[%emt 0:08:59]} 20. c3 {[%emt 0:13:44]} Be7 {[%emt 0:01:48]} 21. gxf5 {[%emt 0:02:29]} gxf5 {[%emt 0:00:30]} 22. Bh5+ {[%emt 0:00:19]} Kf8 {[%emt 0:00:59]} 23. Kh1 {[%emt 0:02:08]} Na5 {[%emt 0:01:52]} 24. Rg1 {[%emt 0:02:50]} Nb3 {[%emt 0:03:18]} 25. Ra2 {[%emt 0:01:18]} Qc6 {[%emt 0:00:13]} 26. Rag2 {[%emt 0:03:49]} g5 {[%emt 0:02:18]} 27. Nb2 {[%emt 0:00:19]} Ra8 {[%emt 0:01:51]} 28. fxg5 {[%emt 0:00:54]} Ra2 {[%emt 0:01:05]} 29. Qf3 {[%emt 0:01:24]} Ba3 {[%emt 0:00:59]} 30. Nd1 {[%emt 0:00:21]} Rxg2 {[%emt 0:01:13]} 31. Rxg2 {[%emt 0:00:05]} Bc1 {[%emt 0:00:04]} 32. h4 {[%emt 0:04:56]} Kg7 {[%emt 0:00:54]} 33. Rc2 {[%emt 0:01:35]} Bxe3 {[%emt 0:00:26]} 34. Nxe3 {[%emt 0:00:02]} Ne7 {[%emt 0:00:23]} 35. Ng2 {[%emt 0:01:18]} Qb6 {[%emt 0:00:53]} 36. Kh2 {[%emt 0:01:16]} Ra8 {[%emt 0:00:30]} 37. Nf4 {[%emt 0:00:51]} Rh8 {[%emt 0:00:27]} 38. Kh3 {[%emt 0:00:51]} Na1 {[%emt 0:00:33]} 39. Ra2 {[%emt 0:00:53]} Nb3 {[%emt 0:00:10]} 40. Qd1 {[%emt 0:00:59]} Rb8 {[%emt 0:00:48]} 41. Bf3 {[%emt 0:03:16]} Ng6 {[%emt 0:00:25]} 42. Nxg6 {[%emt 0:01:55]} Kxg6 {[%emt 0:00:03]} 43. h5+ {[%emt 0:00:11]} Kg7 {[%emt 0:00:23]} 44. Qg1 {[%emt 0:01:18]} Rg8 {[%emt 0:01:07]} 45. Qe3 {[%emt 0:00:38]} Rf8 {[%emt 0:01:03]} 46. Qf4 {[%emt 0:00:48]} 1-0

[Event "50th Ciudad Sevilla 2024"]
[Site "Sevilla"]
[Date "2025.01.15"]
[Round "6.9"]
[White "Anand, Batsukh"]
[Black "Li, Di"]
[Result "0-1"]
[Annotator "RC"]
[ECO "A37"]
[WhiteElo "2234"]
[BlackElo "2544"]
[PlyCount "96"]
[EventDate "2025.01.10"]
[EventType "swiss"]
[EventCountry "ESP"]
[SourceTitle "playchess.com"]
[Source "ChessBase"]
[SourceQuality "1"]
[TimeControl "5400+30"]

1. Nf3 {[%emt 0:00:03]} c5 {[%emt 0:00:08]} 2. c4 {[%emt 0:00:07]} Nc6 {[%emt 0:00:11]} 3. Nc3 {[%emt 0:00:08]} e5 {[%emt 0:00:49]} 4. g3 {[%emt 0:00:19]} g6 {[%emt 0:00:45]} 5. Bg2 {[%emt 0:01:13]} Bg7 {[%emt 0:00:05]} 6. d3 {[%emt 0:00:32]} Nge7 {[%emt 0:01:08]} 7. O-O {[%emt 0:00:53]} d6 {[%emt 0:00:13]} 8. a3 {[%emt 0:03:07]} a5 {[%emt 0:00:05]} 9. Bg5 {[%emt 0:00:52]} O-O {[%emt 0:00:54]} 10. Ne1 {[%emt 0:00:44]} Be6 {[%emt 0:04:45]} 11. Nc2 {[%emt 0:00:56]} f6 {[%emt 0:01:00]} 12. Bd2 {[%emt 0:00:12]} d5 {[%emt 0:02:17]} 13. cxd5 {[%emt 0:03:20]} Nxd5 {[%emt 0:00:18]} 14. Nxd5 {[%emt 0:17:03]} Bxd5 {[%emt 0:00:06]} 15. Bxd5+ {[%emt 0:01:09]} Qxd5 {[%emt 0:00:05]} 16. Ne3 {[%emt 0:00:05]} Qe6 {[%emt 0:01:54]} 17. Rc1 {[%emt 0:00:45]} b6 {[%emt 0:00:51]} 18. Qa4 {[%emt 0:06:02]} Nd4 {[%emt 0:00:54]} 19. Qd1 {[%emt 0:04:35]} a4 {[%emt 0:00:58]} 20. Nc2 {[%emt 0:02:09]} Nc6 {[%emt 0:03:32]} 21. Ne1 {[%emt 0:11:44]} Rfd8 {[%emt 0:02:23]} 22. Nf3 {[%emt 0:03:20]} Bf8 {[%emt 0:01:30]} 23. Qc2 {[%emt 0:02:40]} b5 {[%emt 0:00:26]} 24. Be3 {[%emt 0:00:40]} Rac8 {[%emt 0:00:58]} 25. Rfd1 {[%emt 0:00:50]} g5 {[%emt 0:07:24]} 26. Qb1 {[%emt 0:07:50]} Na5 {[%emt 0:01:09]} 27. Nd2 {[%emt 0:00:34]} h6 {[%emt 0:01:05]} 28. Rc2 {[%emt 0:01:24]} f5 {[%emt 0:09:54]} 29. f3 {[%emt 0:01:31]} Qd5 {[%emt 0:18:01]} 30. Rdc1 {[%emt 0:04:14]} Kh8 {[%emt 0:04:11]} 31. Rc3 {[%emt 0:04:00]} Nb3 {[%emt 0:22:43]} 32. Nxb3 {[%emt 0:03:53]} axb3 {[%emt 0:00:01]} 33. Re1 {[%emt 0:05:57]} e4 {[%emt 0:05:30]} 34. fxe4 {[%emt 0:01:47]} fxe4 {[%emt 0:00:01]} 35. dxe4 {[%emt 0:00:47]} Qe6 {[%emt 0:00:16]} 36. Rd1 {[%emt 0:00:28]} c4 {[%emt 0:00:29]} 37. Rcc1 {[%emt 0:05:04]} Bg7 {[%emt 0:00:11]} 38. Kg2 {[%emt 0:00:12]} Qe5 {[%emt 0:03:15]} 39. a4 {[%emt 0:03:09]} Qxb2 {[%emt 0:00:32]} 40. axb5 {[%emt 0:00:48]} Qxe2+ {[%emt 0:00:22]} 41. Bf2 {[%emt 0:00:07]} Rf8 {[%emt 0:00:29]} 42. Rf1 {[%emt 0:01:16]} Bd4 {[%emt 0:00:28]} 43. e5 {[%emt 0:01:10]} Bxf2 {[%emt 0:00:47]} 44. Qg6 {[%emt 0:00:18]} Be1+ {[%emt 0:00:04]} 45. Kh3 {[%emt 0:01:03]} Qxf1+ {[%emt 0:00:05]} 46. Kg4 {[%emt 0:00:02]} Rf4+ {[%emt 0:01:02]} 47. gxf4 {[%emt 0:00:06]} Qxf4+ {[%emt 0:00:05]} 48. Kh5 {[%emt 0:00:44]} Qh4# {[%emt 0:00:14]} 0-1

[Event "50th Ciudad Sevilla 2024"]
[Site "Sevilla"]
[Date "2025.01.15"]
[Round "6.10"]
[White "Garcia Jimenez, Santiago"]
[Black "Marin, Mihail"]
[Result "0-1"]
[Annotator "RC"]
[ECO "B45"]
[WhiteElo "2187"]
[BlackElo "2431"]
[PlyCount "94"]
[EventDate "2025.01.10"]
[EventType "swiss"]
[EventCountry "ESP"]
[SourceTitle "playchess.com"]
[Source "ChessBase"]
[SourceQuality "1"]
[TimeControl "5400+30"]

1. e4 {[%emt 0:02:46]} c5 {[%emt 0:04:36]} 2. Nf3 {[%emt 0:00:12]} e6 {[%emt 0:00:12]} 3. d4 {[%emt 0:00:33]} cxd4 {[%emt 0:00:05]} 4. Nxd4 {[%emt 0:00:04]} Nc6 {[%emt 0:00:05]} 5. Nc3 {[%emt 0:00:06]} d6 {[%emt 0:00:04]} 6. Be3 {[%emt 0:00:31]} Nf6 {[%emt 0:00:29]} 7. Qd2 {[%emt 0:00:18]} Be7 {[%emt 0:00:06]} 8. f3 {[%emt 0:00:57]} O-O {[%emt 0:00:28]} 9. O-O-O {[%emt 0:00:08]} a6 {[%emt 0:00:42]} 10. g4 {[%emt 0:00:25]} Nd7 {[%emt 0:00:24]} 11. h4 {[%emt 0:02:27]} Nxd4 {[%emt 0:08:31]} 12. Bxd4 {[%emt 0:00:27]} b5 {[%emt 0:00:06]} 13. g5 {[%emt 0:00:43]} b4 {[%emt 0:10:30]} 14. Na4 {[%emt 0:02:37]} Qa5 {[%emt 0:04:37]} 15. b3 {[%emt 0:00:22]} Nc5 {[%emt 0:00:21]} 16. Nxc5 {[%emt 0:03:32]} dxc5 {[%emt 0:05:46]} 17. Bb2 {[%emt 0:00:05]} Rd8 {[%emt 0:01:07]} 18. Qh2 {[%emt 0:00:54]} Rxd1+ {[%emt 0:01:55]} 19. Kxd1 {[%emt 0:00:05]} Bd7 {[%emt 0:11:44]} 20. Kc1 {[%emt 0:09:13]} Bb5 {[%emt 0:16:55]} 21. g6 {[%emt 0:08:16]} hxg6 {[%emt 0:11:42]} 22. h5 {[%emt 0:06:51]} Bg5+ {[%emt 0:01:25]} 23. f4 {[%emt 0:17:51]} Bh6 {[%emt 0:00:08]} 24. hxg6 {[%emt 0:02:46]} Bxf1 {[%emt 0:07:00]} 25. gxf7+ {[%emt 0:15:17]} Kxf7 {[%emt 0:01:35]} 26. Qh5+ {[%emt 0:06:05]} Kf8 {[%emt 0:04:43]} 27. Rxf1 {[%emt 0:04:46]} Qb5 {[%emt 0:00:44]} 28. Rg1 {[%emt 0:00:45]} c4 {[%emt 0:01:25]} 29. Be5 {[%emt 0:00:09]} Bxf4+ {[%emt 0:04:55]} 30. Kb1 {[%emt 0:00:50]} Bxe5 {[%emt 0:01:17]} 31. bxc4 {[%emt 0:07:07]} Qc5 {[%emt 0:00:58]} 32. Rf1+ {[%emt 0:00:42]} Ke7 {[%emt 0:00:05]} 33. Qf7+ {[%emt 0:00:31]} Kd6 {[%emt 0:00:09]} 34. Rd1+ {[%emt 0:01:19]} Kc6 {[%emt 0:00:49]} 35. Qd7+ {[%emt 0:01:21]} Kb6 {[%emt 0:00:05]} 36. Qxe6+ {[%emt 0:00:09]} Kb7 {[%emt 0:00:07]} 37. Rd7+ {[%emt 0:02:02]} Bc7 {[%emt 0:00:09]} 38. Qd5+ {[%emt 0:00:14]} Qc6 {[%emt 0:01:31]} 39. c5 {[%emt 0:01:33]} Re8 {[%emt 0:01:15]} 40. Qd6 {[%emt 0:04:34]} Rxe4 {[%emt 0:00:50]} 41. Rxg7 {[%emt 0:00:25]} Re8 {[%emt 0:00:45]} 42. Kb2 {[%emt 0:00:44]} Rc8 {[%emt 0:00:13]} 43. Rd7 {[%emt 0:00:27]} Qb5 {[%emt 0:00:39]} 44. Qd5+ {[%emt 0:00:18]} Kb8 {[%emt 0:00:08]} 45. Kb1 {[%emt 0:01:01]} Re8 {[%emt 0:00:52]} 46. Qf7 {[%emt 0:00:29]} Re1+ {[%emt 0:00:16]} 47. Kb2 {[%emt 0:00:24]} Be5+ {[%emt 0:00:40]} 0-1

[Event "50th Ciudad Sevilla 2024"]
[Site "Sevilla"]
[Date "2025.01.15"]
[Round "6.11"]
[White "Matamoros Franco, Carlos S."]
[Black "Soumya, Swaminathan"]
[Result "1/2-1/2"]
[Annotator "RC"]
[ECO "E65"]
[WhiteElo "2394"]
[BlackElo "2243"]
[PlyCount "54"]
[EventDate "2025.01.10"]
[EventType "swiss"]
[EventCountry "ESP"]
[SourceTitle "playchess.com"]
[Source "ChessBase"]
[SourceQuality "1"]
[TimeControl "5400+30"]

1. Nf3 {[%emt 0:00:12]} Nf6 {[%emt 0:00:21]} 2. g3 {[%emt 0:00:09]} g6 {[%emt 0:00:18]} 3. Bg2 {[%emt 0:00:13]} Bg7 {[%emt 0:00:09]} 4. c4 {[%emt 0:00:33]} O-O {[%emt 0:00:30]} 5. Nc3 {[%emt 0:00:24]} c5 {[%emt 0:00:23]} 6. O-O {[%emt 0:02:42]} Nc6 {[%emt 0:00:43]} 7. d4 {[%emt 0:03:03]} d6 {[%emt 0:00:25]} 8. dxc5 {[%emt 0:05:45]} dxc5 {[%emt 0:00:10]} 9. Be3 {[%emt 0:00:22]} Be6 {[%emt 0:00:26]} 10. Qa4 {[%emt 0:01:13]} Nd4 {[%emt 0:00:30]} 11. Rac1 {[%emt 0:01:01]} a6 {[%emt 0:01:01]} 12. Qa3 {[%emt 0:12:46]} Bxc4 {[%emt 0:02:00]} 13. Qxc5 {[%emt 0:06:51]} Nxe2+ {[%emt 0:04:19]} 14. Nxe2 {[%emt 0:00:04]} Bxe2 {[%emt 0:00:14]} 15. Rfe1 {[%emt 0:00:06]} Bb5 {[%emt 0:05:16]} 16. Nd4 {[%emt 0:06:05]} Ng4 {[%emt 0:10:52]} 17. Nxb5 {[%emt 0:09:30]} axb5 {[%emt 0:17:34]} 18. Rcd1 {[%emt 0:12:59]} Qc8 {[%emt 0:14:58]} 19. Qxe7 {[%emt 0:02:38]} Nxe3 {[%emt 0:01:10]} 20. Rxe3 {[%emt 0:04:15]} Qc2 {[%emt 0:17:24]} 21. Red3 {[%emt 0:05:09]} Rxa2 {[%emt 0:02:28]} 22. R3d2 {[%emt 0:03:25]} Qf5 {[%emt 0:00:28]} 23. Qxb7 {[%emt 0:07:14]} Rxb2 {[%emt 0:00:54]} 24. Rxb2 {[%emt 0:00:54]} Bxb2 {[%emt 0:00:05]} 25. Rd5 {[%emt 0:06:22]} Qf6 {[%emt 0:01:27]} 26. Rxb5 {[%emt 0:00:13]} Bd4 {[%emt 0:00:07]} 27. Qf3 {[%emt 0:00:07]} Qxf3 {[%emt 0:00:46]} 1/2-1/2

[Event "50th Ciudad Sevilla 2024"]
[Site "Sevilla"]
[Date "2025.01.15"]
[Round "6.12"]
[White "Eliseev, Sergey"]
[Black "Lin, Yingrui"]
[Result "1-0"]
[Annotator "RC"]
[ECO "B42"]
[WhiteElo "2174"]
[BlackElo "2393"]
[PlyCount "65"]
[EventDate "2025.01.10"]
[EventType "swiss"]
[EventCountry "ESP"]
[SourceTitle "playchess.com"]
[Source "ChessBase"]
[SourceQuality "1"]
[TimeControl "5400+30"]

1. e4 {[%emt 0:00:04]} c5 {[%emt 0:01:53]} 2. Nf3 {[%emt 0:00:14]} e6 {[%emt 0:00:03]} 3. d4 {[%emt 0:01:06]} cxd4 {[%emt 0:00:06]} 4. Nxd4 {[%emt 0:00:04]} a6 {[%emt 0:00:06]} 5. Bd3 {[%emt 0:02:31]} Qc7 {[%emt 0:00:25]} 6. c4 {[%emt 0:04:32]} Nc6 {[%emt 0:03:14]} 7. Ne2 {[%emt 0:10:56]} Bd6 {[%emt 0:10:11]} 8. Be3 {[%emt 0:02:17]} Ne5 {[%emt 0:08:51]} 9. Nbc3 {[%emt 0:18:53]} Ne7 {[%emt 0:09:33]} 10. h3 {[%emt 0:13:42]} Bc5 {[%emt 0:02:29]} 11. Nd4 {[%emt 0:08:47]} Qb6 {[%emt 0:05:53]} 12. Be2 {[%emt 0:01:31]} N5c6 {[%emt 0:06:45]} 13. Na4 {[%emt 0:04:11]} Qa5+ {[%emt 0:05:01]} 14. Bd2 {[%emt 0:00:22]} Bb4 {[%emt 0:00:32]} 15. Nxc6 {[%emt 0:01:26]} dxc6 {[%emt 0:02:41]} 16. Nc3 {[%emt 0:01:31]} Qe5 {[%emt 0:01:21]} 17. Qc2 {[%emt 0:03:56]} Ng6 {[%emt 0:03:26]} 18. g3 {[%emt 0:00:42]} Qc7 {[%emt 0:07:19]} 19. Be3 {[%emt 0:02:18]} O-O {[%emt 0:10:14]} 20. a3 {[%emt 0:01:08]} Bxc3+ {[%emt 0:01:06]} 21. Qxc3 {[%emt 0:00:13]} c5 {[%emt 0:00:09]} 22. h4 {[%emt 0:02:28]} e5 {[%emt 0:01:10]} 23. h5 {[%emt 0:01:07]} Ne7 {[%emt 0:00:15]} 24. h6 {[%emt 0:00:26]} g6 {[%emt 0:00:45]} 25. f4 {[%emt 0:00:59]} f6 {[%emt 0:00:40]} 26. fxe5 {[%emt 0:00:57]} fxe5 {[%emt 0:00:44]} 27. O-O-O {[%emt 0:03:37]} b6 {[%emt 0:01:08]} 28. Qd3 {[%emt 0:02:27]} Nc6 {[%emt 0:07:09]} 29. Qd5+ {[%emt 0:01:13]} Rf7 {[%emt 0:01:32]} 30. Rhf1 {[%emt 0:00:44]} Bb7 {[%emt 0:00:18]} 31. Qxf7+ {[%emt 0:00:34]} Qxf7 {[%emt 0:02:05]} 32. Rf4 {[%emt 0:00:08]} Qf6 {[%emt 0:00:31]} 33. Rxf6 {[%emt 0:00:30]} 1-0

[Event "50th Ciudad Sevilla 2024"]
[Site "Sevilla"]
[Date "2025.01.15"]
[Round "6.13"]
[White "Lohia, Sohum"]
[Black "Evenshaug, Amadeus Hestvik"]
[Result "1/2-1/2"]
[Annotator "RC"]
[ECO "B52"]
[WhiteElo "2367"]
[BlackElo "2225"]
[PlyCount "53"]
[EventDate "2025.01.10"]
[EventType "swiss"]
[EventCountry "ESP"]
[SourceTitle "playchess.com"]
[Source "ChessBase"]
[SourceQuality "1"]
[TimeControl "5400+30"]

1. e4 {[%emt 0:00:04]} c5 {[%emt 0:03:03]} 2. Nf3 {[%emt 0:00:10]} d6 {[%emt 0:00:57]} 3. Bb5+ {[%emt 0:00:35]} Bd7 {[%emt 0:00:35]} 4. c4 {[%emt 0:00:22]} Nf6 {[%emt 0:00:47]} 5. Nc3 {[%emt 0:00:19]} g6 {[%emt 0:01:51]} 6. Bxd7+ {[%emt 0:00:42]} Qxd7 {[%emt 0:03:22]} 7. d4 {[%emt 0:00:21]} cxd4 {[%emt 0:00:22]} 8. Nxd4 {[%emt 0:00:29]} Nc6 {[%emt 0:00:35]} 9. f3 {[%emt 0:05:11]} Bg7 {[%emt 0:00:46]} 10. Be3 {[%emt 0:00:14]} O-O {[%emt 0:00:20]} 11. O-O {[%emt 0:00:17]} a6 {[%emt 0:01:54]} 12. a4 {[%emt 0:01:48]} Rac8 {[%emt 0:10:02]} 13. b3 {[%emt 0:01:16]} Qc7 {[%emt 0:04:12]} 14. Rc1 {[%emt 0:10:26]} Qa5 {[%emt 0:02:58]} 15. Rf2 {[%emt 0:12:09]} Rfe8 {[%emt 0:02:41]} 16. Re2 {[%emt 0:17:29]} Nd7 {[%emt 0:07:54]} 17. Nd5 {[%emt 0:07:40]} Nxd4 {[%emt 0:05:25]} 18. Bxd4 {[%emt 0:00:05]} Bxd4+ {[%emt 0:00:47]} 19. Qxd4 {[%emt 0:00:05]} Qc5 {[%emt 0:02:00]} 20. Qxc5 {[%emt 0:01:21]} Nxc5 {[%emt 0:12:20]} 21. Rb1 {[%emt 0:00:34]} Nd7 {[%emt 0:04:31]} 22. Kf2 {[%emt 0:01:43]} Kf8 {[%emt 0:02:00]} 23. Rd2 {[%emt 0:01:15]} Rc6 {[%emt 0:02:12]} 24. Nb4 {[%emt 0:05:15]} Rb6 {[%emt 0:01:30]} 25. Nd5 {[%emt 0:00:17]} Rc6 {[%emt 0:00:17]} 26. Nb4 {[%emt 0:00:25]} Rb6 {[%emt 0:00:10]} 27. Nd5 {[%emt 0:01:50]} 1/2-1/2

[Event "50th Ciudad Sevilla 2024"]
[Site "Sevilla"]
[Date "2025.01.15"]
[Round "6.14"]
[White "Tahay, Alexis"]
[Black "Doraszelski, Alexander"]
[Result "1-0"]
[Annotator "RC"]
[ECO "B90"]
[WhiteElo "2364"]
[BlackElo "2171"]
[PlyCount "71"]
[EventDate "2025.01.10"]
[EventType "swiss"]
[EventCountry "ESP"]
[SourceTitle "playchess.com"]
[Source "ChessBase"]
[SourceQuality "1"]
[TimeControl "5400+30"]

1. e4 {[%emt 0:01:23]} c5 {[%emt 0:00:09]} 2. Nf3 {[%emt 0:00:06]} d6 {[%emt 0:00:05]} 3. d4 {[%emt 0:00:04]} cxd4 {[%emt 0:00:07]} 4. Nxd4 {[%emt 0:00:06]} Nf6 {[%emt 0:00:07]} 5. Nc3 {[%emt 0:00:06]} a6 {[%emt 0:00:05]} 6. Bd3 {[%emt 0:00:16]} g6 {[%emt 0:01:01]} 7. O-O {[%emt 0:01:48]} Bg7 {[%emt 0:01:35]} 8. Re1 {[%emt 0:00:36]} O-O {[%emt 0:01:51]} 9. Bf1 {[%emt 0:00:28]} e5 {[%emt 0:11:31]} 10. Nb3 {[%emt 0:03:51]} h6 {[%emt 0:02:35]} 11. Be3 {[%emt 0:03:07]} Be6 {[%emt 0:16:34]} 12. Qd2 {[%emt 0:02:27]} Ng4 {[%emt 0:05:43]} 13. Rad1 {[%emt 0:01:51]} Qh4 {[%emt 0:01:17]} 14. h3 {[%emt 0:00:05]} Nxe3 {[%emt 0:00:20]} 15. Qxe3 {[%emt 0:02:05]} Qe7 {[%emt 0:06:00]} 16. Qb6 {[%emt 0:05:11]} Nc6 {[%emt 0:02:21]} 17. Nd5 {[%emt 0:01:15]} Bxd5 {[%emt 0:06:13]} 18. exd5 {[%emt 0:00:44]} Nb8 {[%emt 0:02:30]} 19. Na5 {[%emt 0:02:22]} Nd7 {[%emt 0:05:16]} 20. Qxb7 {[%emt 0:00:39]} f5 {[%emt 0:05:03]} 21. Nc6 {[%emt 0:04:03]} Qe8 {[%emt 0:04:19]} 22. Qc7 {[%emt 0:04:55]} Rf6 {[%emt 0:01:27]} 23. b4 {[%emt 0:02:06]} e4 {[%emt 0:02:16]} 24. Nd4 {[%emt 0:02:54]} f4 {[%emt 0:04:08]} 25. Ne6 {[%emt 0:02:55]} e3 {[%emt 0:00:34]} 26. fxe3 {[%emt 0:01:58]} f3 {[%emt 0:00:21]} 27. gxf3 {[%emt 0:00:40]} Rxf3 {[%emt 0:01:20]} 28. Bg2 {[%emt 0:01:54]} Rg3 {[%emt 0:01:09]} 29. Nxg7 {[%emt 0:01:22]} Kxg7 {[%emt 0:00:29]} 30. Qxd6 {[%emt 0:05:51]} Rxg2+ {[%emt 0:02:07]} 31. Kxg2 {[%emt 0:00:09]} Qe4+ {[%emt 0:00:08]} 32. Kh2 {[%emt 0:03:35]} Ne5 {[%emt 0:00:47]} 33. Qe7+ {[%emt 0:05:24]} Kg8 {[%emt 0:01:42]} 34. Qe6+ {[%emt 0:00:05]} Kg7 {[%emt 0:00:31]} 35. Rf1 {[%emt 0:00:27]} Qxe3 {[%emt 0:03:51]} 36. Rf7+ {[%emt 0:00:25]} 1-0